[Event "January 2 Early 2024"]
[Site "https://www.chess.com"]
[Date "2024.01.02"]
[Round "8"]
[White "Kovalev, Vladislav"]
[Black "Zou, Chen"]
[Result "1/2-1/2"]
[Board "15"]
[TimeControl "180+1"]
[WhiteFideId "13504398"]
[BlackFideId "8610959"]
[WhiteElo "2946"]
[BlackElo "2777"]
[WhiteTeam "FID"]
[BlackTeam "CHN"]
[WhiteClock "0:00:05"]
[BlackClock "0:00:08"]

1. e4 {[%clk 0:03:00]}  c5 {[%clk 0:02:56]} 2. Nf3 {[%clk 0:03:01]}  d6 {[%clk 0:02:56]} 3. Bb5+ {[%clk 0:03:01]}  Nd7 {[%clk 0:02:56]} 4. O-O {[%clk 0:03:01]}  a6 {[%clk 0:02:56]} 5. Bd3 {[%clk 0:03:02]}  Ngf6 {[%clk 0:02:56]} 6. c3 {[%clk 0:03:03]}  b5 {[%clk 0:02:48]} 7. a4 {[%clk 0:03:03]}  Bb7 {[%clk 0:02:16]} 8. a5 {[%clk 0:03:03]}  e6 {[%clk 0:02:05]} 9. Re1 {[%clk 0:03:03]}  Be7 {[%clk 0:02:04]} 10. b3 {[%clk 0:02:48]}  O-O {[%clk 0:02:03]} 11. c4 {[%clk 0:02:48]}  Ne5 {[%clk 0:01:58]} 12. Nxe5 {[%clk 0:02:46]}  dxe5 {[%clk 0:01:59]} 13. Bc2 {[%clk 0:02:47]}  Qc7 {[%clk 0:01:49]} 14. Nc3 {[%clk 0:02:43]}  bxc4 {[%clk 0:01:44]} 15. bxc4 {[%clk 0:02:43]}  Rab8 {[%clk 0:01:44]} 16. d3 {[%clk 0:02:39]}  Bc6 {[%clk 0:01:34]} 17. Be3 {[%clk 0:02:37]}  Nd7 {[%clk 0:01:34]} 18. Ba4 {[%clk 0:02:34]}  Rfd8 {[%clk 0:01:30]} 19. Bxc6 {[%clk 0:02:34]}  Qxc6 {[%clk 0:01:31]} 20. Qc2 {[%clk 0:02:29]}  h6 {[%clk 0:01:29]} 21. f3 {[%clk 0:02:23]}  Rb4 {[%clk 0:01:27]} 22. Na2 {[%clk 0:02:14]}  Rb7 {[%clk 0:01:26]} 23. Reb1 {[%clk 0:02:14]}  Rdb8 {[%clk 0:01:25]} 24. Nc1 {[%clk 0:01:57]}  Bd8 {[%clk 0:01:23]} 25. Rxb7 {[%clk 0:01:55]}  Qxb7 {[%clk 0:01:12]} 26. Ra3 {[%clk 0:01:44]}  Qb4 {[%clk 0:01:07]} 27. Qc3 {[%clk 0:01:02]}  Qxc3 {[%clk 0:00:47]} 28. Rxc3 {[%clk 0:01:03]}  Rb1 {[%clk 0:00:41]} 29. Rb3 {[%clk 0:01:01]}  Rxb3 {[%clk 0:00:17]} 30. Nxb3 {[%clk 0:01:02]}  Be7 {[%clk 0:00:18]} 31. g4 {[%clk 0:01:01]}  Kf8 {[%clk 0:00:18]} 32. Kf2 {[%clk 0:00:59]}  Ke8 {[%clk 0:00:18]} 33. Kg3 {[%clk 0:00:59]}  Kd8 {[%clk 0:00:19]} 34. h4 {[%clk 0:01:00]}  Kc7 {[%clk 0:00:19]} 35. h5 {[%clk 0:00:43]}  Kc6 {[%clk 0:00:18]} 36. Kf2 {[%clk 0:00:25]}  Bd8 {[%clk 0:00:18]} 37. Ke2 {[%clk 0:00:25]}  Be7 {[%clk 0:00:17]} 38. Kd2 {[%clk 0:00:25]}  Bd8 {[%clk 0:00:18]} 39. Kc2 {[%clk 0:00:26]}  Kd6 {[%clk 0:00:18]} 40. Kb2 {[%clk 0:00:26]}  Kc6 {[%clk 0:00:18]} 41. Ka3 {[%clk 0:00:27]}  Be7 {[%clk 0:00:18]} 42. Ka4 {[%clk 0:00:27]}  Bh4 {[%clk 0:00:18]} 43. Nc1 {[%clk 0:00:27]}  Bd8 {[%clk 0:00:17]} 44. Ne2 {[%clk 0:00:27]}  Kd6 {[%clk 0:00:17]} 45. Ng1 {[%clk 0:00:26]}  Nb8 {[%clk 0:00:17]} 46. Bd2 {[%clk 0:00:25]}  Nc6 {[%clk 0:00:16]} 47. Bc3 {[%clk 0:00:25]}  Nd4 {[%clk 0:00:14]} 48. Bxd4 {[%clk 0:00:21]}  exd4 {[%clk 0:00:14]} 49. f4 {[%clk 0:00:20]}  Bh4 {[%clk 0:00:05]} 50. Nf3 {[%clk 0:00:19]}  Bg3 {[%clk 0:00:05]} 51. f5 {[%clk 0:00:10]}  Kd7 {[%clk 0:00:06]} 52. Kb3 {[%clk 0:00:10]}  Kd6 {[%clk 0:00:06]} 53. Kc2 {[%clk 0:00:10]}  Kd7 {[%clk 0:00:06]} 54. Kd1 {[%clk 0:00:11]}  Bc7 {[%clk 0:00:07]} 55. g5 {[%clk 0:00:06]}  f6 {[%clk 0:00:07]} 56. gxh6 {[%clk 0:00:05]}  gxh6 {[%clk 0:00:07]} 57. fxe6+ {[%clk 0:00:06]}  Kxe6 {[%clk 0:00:08]} 58. Nh4 {[%clk 0:00:07]}  Bf4 {[%clk 0:00:05]} 59. Nf5 {[%clk 0:00:07]}  Bg5 {[%clk 0:00:05]} 60. Ke2 {[%clk 0:00:07]}  Ke5 {[%clk 0:00:05]} 61. Kf3 {[%clk 0:00:07]}  Bd2 {[%clk 0:00:06]} 62. Kg4 {[%clk 0:00:07]}  Ke6 {[%clk 0:00:06]} 63. Kf3 {[%clk 0:00:06]}  Ke5 {[%clk 0:00:07]} 64. Ke2 {[%clk 0:00:06]}  Bg5 {[%clk 0:00:06]} 65. Ne7 {[%clk 0:00:05]}  Kd6 {[%clk 0:00:04]} 66. Nf5+ {[%clk 0:00:04]}  Ke6 {[%clk 0:00:04]} 67. Ng7+ {[%clk 0:00:05]}  Ke5 {[%clk 0:00:05]} 68. Kd1 {[%clk 0:00:04]}  Kd6 {[%clk 0:00:05]} 69. Nf5+ {[%clk 0:00:04]}  Ke5 {[%clk 0:00:05]} 70. Ne7 {[%clk 0:00:05]}  Ke6 {[%clk 0:00:06]} 71. Nc8 {[%clk 0:00:05]}  Kd7 {[%clk 0:00:06]} 72. Nb6+ {[%clk 0:00:06]}  Kc6 {[%clk 0:00:07]} 73. Nd5 {[%clk 0:00:06]}  Kd6 {[%clk 0:00:07]} 74. Ke2 {[%clk 0:00:06]}  Kc6 {[%clk 0:00:07]} 75. Ne7+ {[%clk 0:00:04]}  Kd6 {[%clk 0:00:07]} 76. Nf5+ {[%clk 0:00:05]}  Ke5 {[%clk 0:00:08]} 1/2-1/2

[Event "January 2 Early 2024"]
[Site "https://www.chess.com"]
[Date "2024.01.02"]
[Round "8"]
[White "Baskakov, Egor"]
[Black "Travadon, Loic"]
[Result "1-0"]
[Board "16"]
[TimeControl "180+1"]
[WhiteFideId "24197866"]
[BlackFideId "26092131"]
[WhiteElo "2941"]
[BlackElo "2309"]
[WhiteTeam "RUS"]
[BlackTeam "FRA"]
[WhiteClock "0:00:18"]
[BlackClock "0:00:05"]

1. e4 {[%clk 0:03:00]}  e5 {[%clk 0:02:59]} 2. Nc3 {[%clk 0:03:00]}  Nf6 {[%clk 0:02:58]} 3. g3 {[%clk 0:03:01]}  Bc5 {[%clk 0:02:46]} 4. Bg2 {[%clk 0:03:00]}  d6 {[%clk 0:02:46]} 5. h3 {[%clk 0:03:00]}  a6 {[%clk 0:02:45]} 6. Nge2 {[%clk 0:03:00]}  Nc6 {[%clk 0:02:45]} 7. d3 {[%clk 0:03:00]}  Be6 {[%clk 0:02:43]} 8. Nd5 {[%clk 0:03:00]}  Nd4 {[%clk 0:02:09]} 9. O-O {[%clk 0:02:51]}  Nxe2+ {[%clk 0:02:05]} 10. Qxe2 {[%clk 0:02:51]}  c6 {[%clk 0:02:06]} 11. Nxf6+ {[%clk 0:02:51]}  Qxf6 {[%clk 0:02:01]} 12. Kh2 {[%clk 0:02:51]}  g5 {[%clk 0:01:57]} 13. Be3 {[%clk 0:02:48]}  h5 {[%clk 0:01:51]} 14. Qd2 {[%clk 0:02:41]}  Bxe3 {[%clk 0:01:46]} 15. fxe3 {[%clk 0:02:41]}  Qe7 {[%clk 0:01:46]} 16. a4 {[%clk 0:02:35]}  h4 {[%clk 0:01:46]} 17. g4 {[%clk 0:02:35]}  b6 {[%clk 0:01:40]} 18. Rf2 {[%clk 0:02:32]}  O-O {[%clk 0:01:37]} 19. Raf1 {[%clk 0:02:32]}  f6 {[%clk 0:01:32]} 20. Ra1 {[%clk 0:02:29]}  Kg7 {[%clk 0:01:27]} 21. Ra3 {[%clk 0:02:29]}  b5 {[%clk 0:01:20]} 22. Rf1 {[%clk 0:02:29]}  Qb7 {[%clk 0:01:16]} 23. axb5 {[%clk 0:02:25]}  axb5 {[%clk 0:01:13]} 24. Rfa1 {[%clk 0:02:25]}  Rxa3 {[%clk 0:01:04]} 25. Rxa3 {[%clk 0:02:25]}  b4 {[%clk 0:01:04]} 26. Ra4 {[%clk 0:02:25]}  Rb8 {[%clk 0:00:59]} 27. Qc1 {[%clk 0:02:24]}  Qb6 {[%clk 0:00:54]} 28. Kg1 {[%clk 0:02:14]}  Bg8 {[%clk 0:00:51]} 29. Kf2 {[%clk 0:02:13]}  d5 {[%clk 0:00:47]} 30. b3 {[%clk 0:02:00]}  Bf7 {[%clk 0:00:45]} 31. Qb2 {[%clk 0:01:52]}  Qc5 {[%clk 0:00:41]} 32. Qa2 {[%clk 0:01:44]}  d4 {[%clk 0:00:40]} 33. Qb2 {[%clk 0:01:35]}  dxe3+ {[%clk 0:00:37]} 34. Ke2 {[%clk 0:01:36]}  Rb5 {[%clk 0:00:34]} 35. Ra6 {[%clk 0:01:27]}  Qd6 {[%clk 0:00:30]} 36. Kxe3 {[%clk 0:01:18]}  Rc5 {[%clk 0:00:30]} 37. Bf1 {[%clk 0:00:31]}  Rc3 {[%clk 0:00:29]} 38. Kf3 {[%clk 0:00:31]}  Qc5 {[%clk 0:00:29]} 39. Ra2 {[%clk 0:00:29]}  Qg1 {[%clk 0:00:27]} 40. Bg2 {[%clk 0:00:29]}  Qd1+ {[%clk 0:00:25]} 41. Kf2 {[%clk 0:00:29]}  Qd2+ {[%clk 0:00:21]} 42. Kg1 {[%clk 0:00:28]}  c5 {[%clk 0:00:20]} 43. Qb1 {[%clk 0:00:25]}  Qe3+ {[%clk 0:00:10]} 44. Kh1 {[%clk 0:00:24]}  Bxb3 {[%clk 0:00:10]} 45. Ra7+ {[%clk 0:00:23]}  Kg6 {[%clk 0:00:10]} 46. Qf1 {[%clk 0:00:18]}  Rxc2 {[%clk 0:00:08]} 47. Qf5+ {[%clk 0:00:17]}  Kh6 {[%clk 0:00:05]} 48. Qh7# {[%clk 0:00:18]} 1-0

[Event "January 2 Early 2024"]
[Site "https://www.chess.com"]
[Date "2024.01.02"]
[Round "8"]
[White "Caruana, Fabiano"]
[Black "Bryakin, Mikhail"]
[Result "0-1"]
[Board "18"]
[TimeControl "180+1"]
[WhiteFideId "2020009"]
[BlackFideId "4165314"]
[WhiteElo "3040"]
[BlackElo "2840"]
[WhiteTeam "USA"]
[BlackTeam "SRB"]
[WhiteClock "0:00:03"]
[BlackClock "0:00:04"]

1. b3 {[%clk 0:03:00]}  d5 {[%clk 0:02:55]} 2. Bb2 {[%clk 0:03:01]}  Nf6 {[%clk 0:02:56]} 3. e3 {[%clk 0:03:00]}  c6 {[%clk 0:02:55]} 4. Nf3 {[%clk 0:03:00]}  Bf5 {[%clk 0:02:54]} 5. c4 {[%clk 0:03:00]}  e6 {[%clk 0:02:55]} 6. Be2 {[%clk 0:03:00]}  h6 {[%clk 0:02:54]} 7. O-O {[%clk 0:03:00]}  Be7 {[%clk 0:02:55]} 8. d3 {[%clk 0:02:59]}  O-O {[%clk 0:02:55]} 9. Nbd2 {[%clk 0:03:00]}  Bh7 {[%clk 0:02:55]} 10. Qc2 {[%clk 0:02:59]}  Nbd7 {[%clk 0:02:54]} 11. Rfd1 {[%clk 0:02:59]}  a5 {[%clk 0:02:55]} 12. a3 {[%clk 0:03:00]}  Bd6 {[%clk 0:02:46]} 13. Rac1 {[%clk 0:02:56]}  Qe7 {[%clk 0:02:46]} 14. Nb1 {[%clk 0:02:42]}  e5 {[%clk 0:02:35]} 15. Qc3 {[%clk 0:02:33]}  e4 {[%clk 0:02:27]} 16. dxe4 {[%clk 0:02:32]}  dxe4 {[%clk 0:02:25]} 17. Nd4 {[%clk 0:02:31]}  Nc5 {[%clk 0:02:16]} 18. Qe1 {[%clk 0:02:17]}  Qe5 {[%clk 0:02:10]} 19. g3 {[%clk 0:02:17]}  Qe7 {[%clk 0:02:09]} 20. Nd2 {[%clk 0:02:13]}  Rfd8 {[%clk 0:02:06]} 21. Ra1 {[%clk 0:02:02]}  Nd3 {[%clk 0:02:00]} 22. Bxd3 {[%clk 0:02:01]}  exd3 {[%clk 0:02:01]} 23. f3 {[%clk 0:01:57]}  Be5 {[%clk 0:01:59]} 24. Ra2 {[%clk 0:01:53]}  c5 {[%clk 0:01:45]} 25. Nb5 {[%clk 0:01:52]}  Bxb2 {[%clk 0:01:45]} 26. Rxb2 {[%clk 0:01:52]}  Qe5 {[%clk 0:01:45]} 27. Rbb1 {[%clk 0:01:49]}  g5 {[%clk 0:01:37]} 28. e4 {[%clk 0:01:44]}  Rd7 {[%clk 0:01:35]} 29. Qf2 {[%clk 0:01:40]}  b6 {[%clk 0:01:32]} 30. Re1 {[%clk 0:01:40]}  Re8 {[%clk 0:01:30]} 31. Re3 {[%clk 0:01:35]}  Nh5 {[%clk 0:01:28]} 32. Rbe1 {[%clk 0:01:33]}  Qb2 {[%clk 0:01:19]} 33. a4 {[%clk 0:01:33]}  Qe5 {[%clk 0:01:08]} 34. Rf1 {[%clk 0:01:22]}  Kh8 {[%clk 0:00:53]} 35. f4 {[%clk 0:01:16]}  Qb2 {[%clk 0:00:52]} 36. fxg5 {[%clk 0:00:47]}  hxg5 {[%clk 0:00:52]} 37. Rfe1 {[%clk 0:00:45]}  Nf6 {[%clk 0:00:43]} 38. h3 {[%clk 0:00:35]}  Qe5 {[%clk 0:00:42]} 39. Nf3 {[%clk 0:00:34]}  Qe7 {[%clk 0:00:33]} 40. e5 {[%clk 0:00:34]}  Nh5 {[%clk 0:00:27]} 41. Nd6 {[%clk 0:00:34]}  Rf8 {[%clk 0:00:26]} 42. Ne4 {[%clk 0:00:17]}  Rg8 {[%clk 0:00:26]} 43. Nc3 {[%clk 0:00:15]}  Qe6 {[%clk 0:00:24]} 44. Kh2 {[%clk 0:00:14]}  g4 {[%clk 0:00:24]} 45. Nh4 {[%clk 0:00:13]}  gxh3 {[%clk 0:00:22]} 46. Nd5 {[%clk 0:00:14]}  Qg4 {[%clk 0:00:11]} 47. Rf3 {[%clk 0:00:06]}  d2 {[%clk 0:00:08]} 48. Rd1 {[%clk 0:00:03]}  Be4 {[%clk 0:00:01]} 49. Ne3 {[%clk 0:00:03]}  Qg7 {[%clk 0:00:01]} 50. Nef5 {[%clk 0:00:03]}  Bxf5 {[%clk 0:00:01]} 51. Nxf5 {[%clk 0:00:04]}  Qg5 {[%clk 0:00:01]} 52. Ne3 {[%clk 0:00:02]}  Re7 {[%clk 0:00:01]} 53. Rxd2 {[%clk 0:00:02]}  Rxe5 {[%clk 0:00:02]} 54. Rd5 {[%clk 0:00:02]}  Rxd5 {[%clk 0:00:02]} 55. Nxd5 {[%clk 0:00:03]}  f5 {[%clk 0:00:03]} 56. Ne3 {[%clk 0:00:02]}  Rf8 {[%clk 0:00:03]} 57. Nd5 {[%clk 0:00:02]}  Qg4 {[%clk 0:00:02]} 58. Nf4 {[%clk 0:00:02]}  Qg5 {[%clk 0:00:02]} 59. Nxh5 {[%clk 0:00:02]}  Qxh5 {[%clk 0:00:03]} 60. Rf4 {[%clk 0:00:03]}  Kg7 {[%clk 0:00:02]} 61. Qe3 {[%clk 0:00:03]}  Qg6 {[%clk 0:00:03]} 62. Qe5+ {[%clk 0:00:03]}  Qf6 {[%clk 0:00:03]} 63. Qe2 {[%clk 0:00:03]}  Qf7 {[%clk 0:00:03]} 64. Qf2 {[%clk 0:00:03]}  Qg6 {[%clk 0:00:03]} 65. Qf3 {[%clk 0:00:03]}  Rf6 {[%clk 0:00:03]} 66. Qf2 {[%clk 0:00:03]}  Qg5 {[%clk 0:00:03]} 67. Rf3 {[%clk 0:00:03]}  Kg6 {[%clk 0:00:03]} 68. Rf4 {[%clk 0:00:04]}  Re6 {[%clk 0:00:03]} 69. Qf3 {[%clk 0:00:03]}  Qf6 {[%clk 0:00:03]} 70. g4 {[%clk 0:00:04]}  Re5 {[%clk 0:00:03]} 71. gxf5+ {[%clk 0:00:04]}  Rxf5 {[%clk 0:00:04]} 72. Qg4+ {[%clk 0:00:04]}  Qg5 {[%clk 0:00:04]} 73. Qxg5+ {[%clk 0:00:04]}  Kxg5 {[%clk 0:00:04]} 74. Re4 {[%clk 0:00:03]}  Rf3 {[%clk 0:00:04]} 75. Re5+ {[%clk 0:00:03]}  Kf4 {[%clk 0:00:04]} 0-1

[Event "January 2 Early 2024"]
[Site "https://www.chess.com"]
[Date "2024.01.02"]
[Round "8"]
[White "Fedoseev, Vladimir"]
[Black "Boruchovsky, Avital"]
[Result "1-0"]
[Board "22"]
[TimeControl "180+1"]
[WhiteFideId "24130737"]
[BlackFideId "2800055"]
[WhiteElo "3017"]
[BlackElo "2829"]
[WhiteTeam "SLO"]
[BlackTeam "ISR"]
[WhiteClock "0:00:16"]
[BlackClock "0:00:16"]

1. Nf3 {[%clk 0:03:00]}  d5 {[%clk 0:02:55]} 2. g3 {[%clk 0:03:00]}  Nd7 {[%clk 0:02:52]} 3. d4 {[%clk 0:02:58]}  Nb6 {[%clk 0:02:52]} 4. Nc3 {[%clk 0:02:58]}  Bf5 {[%clk 0:02:50]} 5. Nh4 {[%clk 0:02:58]}  e6 {[%clk 0:02:50]} 6. Nxf5 {[%clk 0:02:56]}  exf5 {[%clk 0:02:51]} 7. Qd3 {[%clk 0:02:56]}  Qd7 {[%clk 0:02:50]} 8. a4 {[%clk 0:02:38]}  a5 {[%clk 0:02:48]} 9. b3 {[%clk 0:02:35]}  Nf6 {[%clk 0:02:43]} 10. Bh3 {[%clk 0:02:33]}  g6 {[%clk 0:02:41]} 11. Nd1 {[%clk 0:02:30]}  O-O-O {[%clk 0:02:39]} 12. Bd2 {[%clk 0:02:26]}  Bb4 {[%clk 0:02:19]} 13. Bxb4 {[%clk 0:02:26]}  axb4 {[%clk 0:02:20]} 14. a5 {[%clk 0:02:27]}  Na8 {[%clk 0:02:20]} 15. a6 {[%clk 0:02:14]}  Qc6 {[%clk 0:02:19]} 16. Ra4 {[%clk 0:02:01]}  h5 {[%clk 0:01:51]} 17. Ne3 {[%clk 0:01:33]}  Ne4 {[%clk 0:01:26]} 18. Rxb4 {[%clk 0:01:26]}  bxa6 {[%clk 0:01:18]} 19. O-O {[%clk 0:01:14]}  h4 {[%clk 0:00:54]} 20. g4 {[%clk 0:01:10]}  Ng5 {[%clk 0:00:50]} 21. Bg2 {[%clk 0:01:05]}  h3 {[%clk 0:00:50]} 22. Bh1 {[%clk 0:01:03]}  f4 {[%clk 0:00:41]} 23. Nxd5 {[%clk 0:00:32]}  Qe6 {[%clk 0:00:41]} 24. Nxf4 {[%clk 0:00:26]}  Qxg4+ {[%clk 0:00:40]} 25. Qg3 {[%clk 0:00:27]}  Qxg3+ {[%clk 0:00:38]} 26. fxg3 {[%clk 0:00:28]}  Nb6 {[%clk 0:00:38]} 27. Ra1 {[%clk 0:00:24]}  Ne6 {[%clk 0:00:23]} 28. Nxe6 {[%clk 0:00:22]}  fxe6 {[%clk 0:00:24]} 29. Rxa6 {[%clk 0:00:21]}  Rhf8 {[%clk 0:00:22]} 30. Bf3 {[%clk 0:00:20]}  e5 {[%clk 0:00:21]} 31. dxe5 {[%clk 0:00:16]}  Rd1+ {[%clk 0:00:20]} 32. Kf2 {[%clk 0:00:17]}  Rh1 {[%clk 0:00:21]} 33. Rbxb6 {[%clk 0:00:17]}  Rxf3+ {[%clk 0:00:18]} 34. Kxf3 {[%clk 0:00:17]}  cxb6 {[%clk 0:00:19]} 35. Rxb6 {[%clk 0:00:17]}  Rxh2 {[%clk 0:00:19]} 36. Rxg6 {[%clk 0:00:18]}  Rh1 {[%clk 0:00:19]} 37. Rh6 {[%clk 0:00:19]}  h2 {[%clk 0:00:18]} 38. Kg4 {[%clk 0:00:16]}  Kd7 {[%clk 0:00:18]} 39. b4 {[%clk 0:00:16]}  Ke7 {[%clk 0:00:18]} 40. b5 {[%clk 0:00:16]}  Rc1 {[%clk 0:00:17]} 41. Rxh2 {[%clk 0:00:16]}  Rxc2 {[%clk 0:00:18]} 42. Kf5 {[%clk 0:00:16]}  Rxe2 {[%clk 0:00:16]} 43. Rxe2 {[%clk 0:00:16]} 1-0

[Event "January 2 Early 2024"]
[Site "https://www.chess.com"]
[Date "2024.01.02"]
[Round "8"]
[White "Bluebaum, Matthias"]
[Black "Bologan, Victor"]
[Result "1/2-1/2"]
[Board "23"]
[TimeControl "180+1"]
[WhiteFideId "24651516"]
[BlackFideId "13900048"]
[WhiteElo "3000"]
[BlackElo "2818"]
[WhiteTeam "GER"]
[BlackTeam "MDA"]
[WhiteClock "0:00:03"]
[BlackClock "0:00:20"]

1. d4 {[%clk 0:03:00]}  Nf6 {[%clk 0:02:59]} 2. c4 {[%clk 0:03:01]}  c5 {[%clk 0:02:59]} 3. d5 {[%clk 0:03:01]}  b5 {[%clk 0:02:59]} 4. cxb5 {[%clk 0:03:02]}  a6 {[%clk 0:02:59]} 5. bxa6 {[%clk 0:03:02]}  Bxa6 {[%clk 0:02:59]} 6. Nc3 {[%clk 0:03:02]}  g6 {[%clk 0:02:57]} 7. e4 {[%clk 0:03:03]}  Bxf1 {[%clk 0:02:56]} 8. Kxf1 {[%clk 0:03:04]}  d6 {[%clk 0:02:56]} 9. g3 {[%clk 0:03:04]}  Bg7 {[%clk 0:02:55]} 10. Kg2 {[%clk 0:03:05]}  O-O {[%clk 0:02:56]} 11. Nf3 {[%clk 0:03:06]}  Nbd7 {[%clk 0:02:55]} 12. a4 {[%clk 0:03:06]}  Qb6 {[%clk 0:02:55]} 13. Qe2 {[%clk 0:03:01]}  Rfb8 {[%clk 0:02:54]} 14. Nb5 {[%clk 0:03:01]}  Ne8 {[%clk 0:02:54]} 15. Ra3 {[%clk 0:03:02]}  Nc7 {[%clk 0:02:52]} 16. Nxc7 {[%clk 0:03:02]}  Qxc7 {[%clk 0:02:51]} 17. b3 {[%clk 0:03:03]}  Qb7 {[%clk 0:02:36]} 18. a5 {[%clk 0:02:36]}  Qb5 {[%clk 0:02:29]} 19. Qxb5 {[%clk 0:02:25]}  Rxb5 {[%clk 0:02:28]} 20. Bd2 {[%clk 0:02:26]}  f5 {[%clk 0:02:09]} 21. exf5 {[%clk 0:02:17]}  Nf6 {[%clk 0:02:08]} 22. fxg6 {[%clk 0:02:15]}  hxg6 {[%clk 0:02:07]} 23. h4 {[%clk 0:01:39]}  Nxd5 {[%clk 0:01:57]} 24. h5 {[%clk 0:01:38]}  Bb2 {[%clk 0:01:52]} 25. Ra2 {[%clk 0:01:37]}  Rxb3 {[%clk 0:01:50]} 26. Rb1 {[%clk 0:01:32]}  Rab8 {[%clk 0:01:49]} 27. a6 {[%clk 0:01:32]}  gxh5 {[%clk 0:01:32]} 28. a7 {[%clk 0:01:28]}  Ra8 {[%clk 0:01:32]} 29. Raxb2 {[%clk 0:01:19]}  Rxb2 {[%clk 0:01:32]} 30. Rxb2 {[%clk 0:01:20]}  Rxa7 {[%clk 0:01:32]} 31. Nh4 {[%clk 0:01:16]}  Kf7 {[%clk 0:01:29]} 32. Nf5 {[%clk 0:01:15]}  c4 {[%clk 0:01:17]} 33. Rb5 {[%clk 0:01:10]}  Nf6 {[%clk 0:01:06]} 34. Ne3 {[%clk 0:00:50]}  Rc7 {[%clk 0:00:51]} 35. Nd5 {[%clk 0:00:40]}  Nxd5 {[%clk 0:00:49]} 36. Rxd5 {[%clk 0:00:40]}  c3 {[%clk 0:00:48]} 37. Bc1 {[%clk 0:00:41]}  Rb7 {[%clk 0:00:42]} 38. Rxh5 {[%clk 0:00:40]}  Rb1 {[%clk 0:00:41]} 39. Rh1 {[%clk 0:00:39]}  d5 {[%clk 0:00:40]} 40. Rd1 {[%clk 0:00:24]}  d4 {[%clk 0:00:37]} 41. Rxd4 {[%clk 0:00:16]}  Rxc1 {[%clk 0:00:36]} 42. Rc4 {[%clk 0:00:17]}  Ke6 {[%clk 0:00:34]} 43. Kf3 {[%clk 0:00:17]}  Kd5 {[%clk 0:00:33]} 44. Rc7 {[%clk 0:00:17]}  Kd4 {[%clk 0:00:29]} 45. Rxe7 {[%clk 0:00:11]}  Rg1 {[%clk 0:00:23]} 46. Rd7+ {[%clk 0:00:05]}  Kc4 {[%clk 0:00:23]} 47. Rc7+ {[%clk 0:00:05]}  Kd3 {[%clk 0:00:23]} 48. Rd7+ {[%clk 0:00:06]}  Kc4 {[%clk 0:00:20]} 49. Rc7+ {[%clk 0:00:02]}  Kd3 {[%clk 0:00:20]} 50. Rd7+ {[%clk 0:00:03]}  Kc4 {[%clk 0:00:20]} 1/2-1/2

[Event "January 2 Early 2024"]
[Site "https://www.chess.com"]
[Date "2024.01.02"]
[Round "8"]
[White "Svane, Rasmus"]
[Black "Arabidze, Meri"]
[Result "1-0"]
[Board "24"]
[TimeControl "180+1"]
[WhiteFideId "4657101"]
[BlackFideId "13604040"]
[WhiteElo "2991"]
[BlackElo "2739"]
[WhiteTeam "GER"]
[BlackTeam "GEO"]
[WhiteClock "0:00:13"]
[BlackClock "0:00:00"]

1. Nf3 {[%clk 0:03:00]}  c5 {[%clk 0:02:58]} 2. c4 {[%clk 0:02:58]}  g6 {[%clk 0:02:57]} 3. d4 {[%clk 0:02:56]}  Bg7 {[%clk 0:02:57]} 4. e4 {[%clk 0:02:55]}  cxd4 {[%clk 0:02:56]} 5. Nxd4 {[%clk 0:02:56]}  Nc6 {[%clk 0:02:57]} 6. Be3 {[%clk 0:02:54]}  d6 {[%clk 0:02:56]} 7. Nc3 {[%clk 0:02:54]}  Nf6 {[%clk 0:02:55]} 8. Be2 {[%clk 0:02:52]}  O-O {[%clk 0:02:55]} 9. O-O {[%clk 0:02:52]}  Bd7 {[%clk 0:02:55]} 10. Nc2 {[%clk 0:02:52]}  a5 {[%clk 0:02:49]} 11. Rc1 {[%clk 0:02:49]}  a4 {[%clk 0:02:46]} 12. f4 {[%clk 0:02:42]}  Qa5 {[%clk 0:02:44]} 13. Qd2 {[%clk 0:02:35]}  Ng4 {[%clk 0:02:21]} 14. Bxg4 {[%clk 0:02:32]}  Bxg4 {[%clk 0:02:22]} 15. f5 {[%clk 0:02:21]}  Ne5 {[%clk 0:02:15]} 16. Na3 {[%clk 0:02:12]}  Rfc8 {[%clk 0:01:42]} 17. h3 {[%clk 0:02:07]}  Bh5 {[%clk 0:01:41]} 18. Nd5 {[%clk 0:01:51]}  Qxd2 {[%clk 0:01:33]} 19. Bxd2 {[%clk 0:01:52]}  Nd3 {[%clk 0:00:56]} 20. Nxe7+ {[%clk 0:01:40]}  Kf8 {[%clk 0:00:56]} 21. f6 {[%clk 0:01:30]}  Bxf6 {[%clk 0:00:42]} 22. Rxf6 {[%clk 0:01:24]}  Kxe7 {[%clk 0:00:41]} 23. Rcf1 {[%clk 0:01:20]}  g5 {[%clk 0:00:39]} 24. Bxg5 {[%clk 0:01:16]}  Kd7 {[%clk 0:00:35]} 25. Nb5 {[%clk 0:01:07]}  Ra6 {[%clk 0:00:35]} 26. b3 {[%clk 0:00:51]}  axb3 {[%clk 0:00:33]} 27. axb3 {[%clk 0:00:52]}  Nc5 {[%clk 0:00:27]} 28. Nd4 {[%clk 0:00:22]}  Nxe4 {[%clk 0:00:26]} 29. Rxf7+ {[%clk 0:00:21]}  Bxf7 {[%clk 0:00:20]} 30. Rxf7+ {[%clk 0:00:21]}  Ke8 {[%clk 0:00:20]} 31. Re7+ {[%clk 0:00:19]}  Kf8 {[%clk 0:00:20]} 32. Ne6+ {[%clk 0:00:19]}  Kg8 {[%clk 0:00:20]} 33. Be3 {[%clk 0:00:18]}  Ra1+ {[%clk 0:00:13]} 34. Kh2 {[%clk 0:00:17]}  Rd1 {[%clk 0:00:09]} 35. Rg7+ {[%clk 0:00:12]}  Kh8 {[%clk 0:00:09]} 36. Rxb7 {[%clk 0:00:13]}  Re8 {[%clk 0:00:09]} 37. Bd4+ {[%clk 0:00:13]}  Rxd4 {[%clk 0:00:07]} 38. Nxd4 {[%clk 0:00:14]}  Nc5 {[%clk 0:00:07]} 39. Rb6 {[%clk 0:00:13]}  Re4 {[%clk 0:00:05]} 40. Rxd6 {[%clk 0:00:13]}  Kg7 {[%clk 0:00:03]} 41. b4 {[%clk 0:00:12]}  Nd3 {[%clk 0:00:02]} 42. Nf5+ {[%clk 0:00:12]}  Kf7 {[%clk 0:00:03]} 43. Rxd3 {[%clk 0:00:13]}  Rxc4 {[%clk 0:00:00]} 44. Nd6+ {[%clk 0:00:13]} 1-0